bitfinex/quotes_SOLUSD_20230402
["timestamp","ask_amount","ask_price","bid_price","bid_amount"]
[1680440333607,0.57650966,20.941,20.935,10.0]
[1680440334216,16.712,20.942,20.935,10.0]
[1680440335209,0.57650966,20.941,20.935,10.0]
[1680440336223,16.712,20.942,20.935,10.0]
[1680440337208,0.57650966,20.941,20.935,10.0]
[1680440337403,0.57650966,20.941,20.933,10.0]
[1680440337614,0.57650966,20.941,20.935,10.0]
[1680440338318,16.712,20.942,20.935,10.0]
[1680440338721,16.712,20.942,20.933,10.0]
[1680440339012,16.712,20.942,20.935,10.0]
[1680440339215,0.57650966,20.941,20.935,10.0]
[1680440340216,16.712,20.942,20.935,10.0]
[1680440340617,16.712,20.942,20.936,17.0]
[1680440340824,16.712,20.942,20.935,10.0]
[1680440341121,16.712,20.942,20.933,10.0]
[1680440341311,0.57650966,20.941,20.934,17.0]
[1680440342322,16.712,20.942,20.934,17.0]
[1680440343224,0.57650966,20.941,20.934,17.0]
[1680440344422,16.712,20.942,20.935,10.0]
[1680440344720,16.712,20.942,20.937,10.0]
[1680440345229,0.57650966,20.941,20.937,10.0]
[1680440348733,0.57650966,20.941,20.935,10.0]
[1680440348918,0.57650966,20.941,20.937,10.0]
[1680440350630,0.57650966,20.941,20.933,10.0]
[1680440350810,17.57650966,20.941,20.927,10.0]
[1680440351130,0.57650966,20.941,20.927,10.0]
[1680440351915,20.57650966,20.941,20.927,10.0]
[1680440353526,10.0,20.939,20.925,29.107256]
[1680440353829,17.0,20.94,20.925,10.0]
[1680440354539,0.57553254,20.938,20.925,10.0]
[1680440354719,17.57553254,20.938,20.925,10.0]
[1680440360523,0.57553254,20.938,20.925,10.0]
[1680440366936,10.57553254,20.938,20.92,10.0]
[1680440367131,17.0,20.937,20.92,10.0]
[1680440367325,10.0,20.936,20.92,10.0]
[1680440367527,10.0,20.934,20.92,10.0]
[1680440367830,17.0,20.933,20.92,10.0]
[1680440368226,132.4162,20.933,20.92,10.0]
[1680440371539,10.57357747,20.932,20.92,10.0]
[1680440372028,0.57357747,20.932,20.92,10.0]
[1680440381949,0.57357747,20.932,20.922,10.0]
[1680440382547,10.0,20.94,20.922,10.0]
[1680440382746,17.0,20.939,20.922,10.0]
[1680440382949,10.0,20.938,20.922,10.0]
[1680440384352,10.0,20.936,20.922,10.0]
[1680440384563,17.0,20.937,20.922,10.0]
[1680440386452,0.57488098,20.936,20.922,10.0]
[1680440387540,0.57488098,20.936,20.922,124.8031]
[1680440390549,10.0,20.935,20.922,114.8031]
[1680440390760,17.0,20.934,20.922,114.8031]
[1680440391153,17.0,20.934,20.922,99.8031]
[1680440391653,17.57422929,20.934,20.922,99.8031]
[1680440398937,0.57422929,20.934,20.922,99.8031]
[1680440399145,0.57422929,20.934,20.923,10.0]
[1680440399659,0.57422929,20.934,20.922,99.8031]
[1680440400550,17.57422929,20.934,20.922,99.8031]
[1680440400745,17.57422929,20.934,20.921,110.8917]
[1680440401351,17.57422929,20.934,20.914,29.116906]
[1680440401352,10.0,20.932,20.914,29.116906]
[1680440401558,20.0,20.931,20.916,10.0]
[1680440401856,27.0,20.93,20.916,10.0]
[1680440402054,82.34579979,20.93,20.916,10.0]
[1680440402358,82.34579979,20.93,20.915,112.3165]
[1680440402542,82.91872532,20.93,20.915,112.3165]
[1680440406151,55.34579979,20.929,20.915,112.3165]
[1680440406343,27.0,20.928,20.915,112.3165]
[1680440408145,0.57259951,20.929,20.915,112.3165]
[1680440408346,0.57259951,20.929,20.916,10.0]
[1680440408548,0.57194739,20.927,20.916,10.0]
[1680440409562,20.0,20.93,20.916,10.0]
[1680440410461,10.0,20.928,20.915,112.3165]
[1680440410761,17.0,20.927,20.915,112.3165]
[1680440411344,10.0,20.929,20.915,112.3165]
[1680440411562,17.0,20.928,20.915,112.3165]
[1680440412064,17.0,20.928,20.911,12.60815882]
[1680440412065,30.0,20.927,20.911,12.60815882]
[1680440412444,10.0,20.925,20.911,12.60815882]
[1680440412658,20.0,20.924,20.911,12.60815882]
[1680440412847,10.0,20.922,20.911,12.60815882]
[1680440413048,37.0,20.921,20.911,12.60815882]
[1680440416468,10.58067989,20.92,20.911,12.60815882]
[1680440416663,17.0,20.919,20.911,12.60815882]
[1680440417165,17.58067989,20.92,20.911,12.60815882]
[1680440421173,0.58067989,20.92,20.911,12.60815882]
[1680440421561,17.58067989,20.92,20.911,12.60815882]
[1680440424274,17.58067989,20.92,20.907,109.5287]
[1680440426766,10.0,20.919,20.907,109.5287]
[1680440427075,17.0,20.918,20.907,109.5287]
[1680440427480,0.58035408,20.919,20.907,109.5287]
[1680440428460,0.58035408,20.919,20.908,10.0]
[1680440428664,0.58035408,20.919,20.909,17.0]
[1680440428870,0.58035408,20.919,20.91,10.0]
[1680440429378,10.0,20.924,20.91,10.0]
[1680440429681,10.0,20.922,20.91,10.0]
[1680440429881,20.0,20.921,20.91,10.0]
[1680440430384,17.0,20.92,20.908,10.0]
[1680440432484,10.58035408,20.919,20.908,10.0]
[1680440432669,10.58035408,20.919,20.907,109.5287]
[1680440432870,17.0,20.918,20.907,109.5287]
[1680440434070,17.58035408,20.919,20.907,109.5287]
[1680440434778,17.0,20.918,20.907,109.5287]
[1680440435080,0.58035408,20.919,20.907,109.5287]
[1680440435393,10.58035408,20.919,20.907,109.5287]
[1680440435567,10.0,20.917,20.907,109.5287]
[1680440435765,17.0,20.916,20.907,109.5287]
[1680440436385,0.57937649,20.916,20.907,109.5287]
[1680440437396,17.0,20.918,20.907,109.5287]
[1680440437692,10.0,20.919,20.907,109.5287]
[1680440437892,17.0,20.918,20.907,109.5287]
[1680440440000,30.0,20.921,20.907,109.5287]
[1680440440390,0.57970239,20.917,20.907,109.5287]
[1680440441286,30.0,20.921,20.907,109.5287]
[1680440441490,10.0,20.919,20.907,109.5287]
[1680440441685,17.0,20.918,20.907,109.5287]
[1680440444604,10.0,20.919,20.907,109.5287]
[1680440444888,0.57970239,20.917,20.907,109.5287]
[1680440448694,0.57337649,20.916,20.902,10.0]
[1680440449004,17.57337649,20.916,20.905,10.0]
[1680440452303,17.57337649,20.916,20.904,118.1685]
[1680440465212,17.57337649,20.916,20.906,10.0]
[1680440465512,17.57337649,20.916,20.907,12.61057105]
[1680440466301,0.57337649,20.916,20.907,12.61057105]
[1680440533976,10.0,20.915,20.907,12.61057105]
[1680440534272,10.0,20.913,20.907,12.61057105]
[1680440534462,37.0,20.912,20.907,12.61057105]
[1680440534761,10.0,20.911,20.907,12.61057105]
[1680440534970,37.0,20.91,20.907,12.61057105]
[1680440537970,10.0,20.913,20.907,12.61057105]
[1680440538469,0.57109435,20.909,20.907,12.61057105]
[1680440538769,10.57109435,20.909,20.907,12.61057105]
[1680440539169,17.0,20.908,20.907,12.61057105]
[1680440540256,10.0,20.907,20.894,111.7102]
[1680440540455,10.0,20.905,20.897,10.0]
[1680440540660,17.0,20.908,20.898,12.85119225]
[1680440541370,0.57109435,20.909,20.898,12.85119225]
[1680440547478,10.57109435,20.909,20.898,12.85119225]
[1680440547677,10.0,20.907,20.898,12.85119225]
[1680440547880,17.0,20.906,20.898,12.85119225]
[1680440549686,0.5707682,20.908,20.898,12.85119225]
[1680440549687,17.5707682,20.908,20.898,12.85119225]
[1680440556090,17.5707682,20.908,20.899,11.79335809]
[1680440556286,17.5707682,20.908,20.897,11.58628938]
[1680440556490,17.5707682,20.908,20.9,11.58462627]
[1680440556792,17.5707682,20.908,20.901,11.25728575]
[1680440556975,17.5707682,20.908,20.902,11.02139207]
[1680440557284,17.5707682,20.908,20.903,10.76701539]
[1680440560683,0.5707682,20.908,20.903,10.76701539]
[1680440562591,10.0,20.907,20.903,10.76701539]
[1680440562793,17.0,20.906,20.903,10.76701539]
[1680440562997,10.0,20.905,20.903,10.76701539]
[1680440563184,17.0,20.904,20.903,10.76701539]
[1680440563678,17.0,20.904,20.903,0.00701539]
[1680440567693,17.56946331,20.904,20.903,0.00701539]
[1680440571498,17.56946331,20.904,20.895,11.3196994]
[1680440571697,10.0,20.903,20.895,11.3196994]
[1680440571900,10.0,20.901,20.895,11.3196994]
[1680440572207,10.0,20.899,20.895,11.3196994]
[1680440572399,17.0,20.898,20.895,11.3196994]
[1680440576502,0.56717855,20.897,20.895,11.3196994]
[1680440577590,17.0,20.898,20.895,11.3196994]
[1680440578100,198.29729561,20.955,20.895,11.3196994]
[1680440578101,63.87327185,20.909,20.895,11.3196994]
[1680440578307,10.0,20.908,20.895,11.3196994]
[1680440579904,10.0,20.905,20.895,11.3196994]
[1680440580107,17.0,20.904,20.895,11.3196994]
[1680440582598,17.0,20.904,20.89,10.0]
[1680440584915,17.0,20.904,20.889,119.5225]
[1680440585096,10.0,20.903,20.889,119.5225]
[1680440585297,10.0,20.901,20.889,119.5225]
[1680440585813,10.0,20.899,20.889,119.5225]
[1680440586008,10.0,20.897,20.889,119.5225]
[1680440586314,17.0,20.896,20.889,119.5225]
[1680440587302,17.0,20.898,20.889,119.5225]
[1680440589101,17.0,20.898,20.887,112.344]
[1680440589612,10.56717855,20.897,20.887,112.344]
[1680440589916,17.0,20.896,20.887,112.344]
[1680440590706,0.56717855,20.897,20.887,112.344]
[1680440591015,0.56717855,20.897,20.888,10.0]
[1680440591604,82.87553572,20.908,20.888,10.0]
[1680440592001,17.0,20.902,20.888,10.0]
[1680440592202,10.0,20.901,20.888,10.0]
[1680440592509,17.0,20.9,20.888,10.0]
[1680440595617,17.0,20.9,20.887,112.344]
[1680440595915,17.0,20.9,20.888,10.0]
[1680440596503,10.56783149,20.899,20.888,10.0]
[1680440596704,10.56783149,20.899,20.887,112.344]
[1680440597015,17.0,20.898,20.887,112.344]
[1680440598305,0.56783149,20.899,20.888,10.0]
[1680440598501,17.0,20.9,20.888,10.0]
[1680440599325,17.0,20.9,20.887,112.344]
[1680440599505,0.56783149,20.899,20.887,112.344]
[1680440599819,10.56783149,20.899,20.887,112.344]
[1680440600021,10.0,20.897,20.887,112.344]
[1680440600318,17.0,20.896,20.887,112.344]
[1680440604530,0.56652548,20.895,20.887,112.344]
[1680440604918,10.56652548,20.895,20.887,112.344]
[1680440605119,17.0,20.894,20.887,112.344]
[1680440605504,0.56652548,20.895,20.887,112.344]
[1680440608230,0.56652548,20.895,20.879,10.0]
[1680440608527,10.0,20.895,20.881,10.0]
[1680440608825,10.0,20.893,20.881,20.78807282]
[1680440609018,17.0,20.892,20.881,10.62980522]
[1680440609221,17.0,20.892,20.881,10.113222]
[1680440609419,7.74129442,20.89,20.881,10.113222]
[1680440609607,20.0,20.891,20.881,10.113222]
[1680440609930,27.0,20.89,20.881,10.113222]
[1680440610426,7.17217194,20.889,20.881,10.113222]
[1680440610629,10.0,20.887,20.876,19.149478]
[1680440610812,17.0,20.886,20.876,19.149478]
[1680440611017,10.0,20.884,20.876,19.149478]
[1680440611221,10.0,20.882,20.876,19.149478]
[1680440611710,10.0,20.88,20.876,19.149478]
[1680440611918,17.0,20.879,20.876,19.149478]
[1680440612326,10.0,20.878,20.876,8.149478]
[1680440612645,125.19686646,20.878,20.876,8.149478]
[1680440612938,115.19686646,20.878,20.876,8.149478]
[1680440613239,17.0,20.879,20.876,8.149478]
[1680440613531,10.0,20.88,20.862,10.0]
[1680440614333,17.0,20.879,20.862,10.0]
[1680440614516,17.0,20.879,20.861,110.3325]
[1680440614840,0.56195048,20.881,20.862,10.0]
[1680440615041,0.56195048,20.881,20.864,10.0]
[1680440615222,0.56195048,20.881,20.866,10.0]
[1680440615420,0.56195048,20.881,20.867,20.0]
[1680440615623,16.76,20.883,20.868,10.0]
[1680440616529,0.56227747,20.882,20.868,10.0]
[1680440618433,17.56227747,20.882,20.868,10.0]
[1680440619527,0.56227747,20.882,20.868,10.0]
[1680440621627,16.76,20.883,20.868,10.0]
[1680440622441,0.56227747,20.882,20.868,10.0]
[1680440622738,17.56227747,20.882,20.868,10.0]
[1680440623039,0.56227747,20.882,20.868,10.0]
[1680440623634,33.51,20.889,20.868,17.17217194]
[1680440623833,33.51,20.889,20.869,37.0]
[1680440624027,33.51,20.889,20.869,136.76161721]
[1680440624330,10.0,20.908,20.87,116.93378915]
[1680440624525,10.0,20.908,20.871,162.4626]
[1680440624748,10.0,20.908,20.871,412.29638915]
[1680440625037,10.0,20.908,20.872,259.83378915]
[1680440625230,10.0,20.908,20.873,37.0]
[1680440625231,16.76,20.883,20.873,37.0]
[1680440625430,10.0,20.908,20.873,196.92925851]
[1680440625634,10.0,20.908,20.874,159.92925851]
[1680440625823,10.0,20.908,20.875,17.0]
[1680440626131,16.76,20.883,20.877,10.0]
[1680440626338,33.51,20.889,20.879,10.0]
[1680440626524,33.51,20.889,20.881,10.0]
[1680440626720,33.51,20.889,20.882,20.0]
[1680440626926,33.51,20.889,20.883,27.0]
[1680440627537,33.51,20.889,20.885,10.0]
[1680440627926,33.51,20.889,20.887,10.0]
[1680440628435,33.51,20.889,20.888,20.0]
[1680440632641,34.01833777,20.889,20.888,20.0]
[1680440636552,34.01833777,20.889,20.887,20.0]
[1680440638546,34.01833777,20.889,20.883,10.0]
[1680440638747,34.01833777,20.889,20.876,10.0]
[1680440639948,34.01833777,20.889,20.876,86.90958694]
[1680440641343,34.01833777,20.889,20.882,7.17217194]
[1680440648757,34.01833777,20.889,20.876,86.90958694]
[1680440649067,17.0,20.888,20.879,7.17217194]
[1680440649560,17.508011,20.888,20.879,7.17217194]
[1680440650756,17.508011,20.888,20.876,86.90958694]
[1680440651055,0.508011,20.888,20.876,86.90958694]
[1680440651561,0.508011,20.888,20.877,17.17217194]
[1680440652265,0.508011,20.888,20.877,10.0]
[1680440652466,17.508011,20.888,20.877,10.0]
[1680440652972,0.508011,20.888,20.877,10.0]
[1680440653475,0.508011,20.888,20.877,17.17217194]
[1680440654374,0.508011,20.888,20.877,10.0]
[1680440654877,17.508011,20.888,20.877,10.0]
[1680440658856,17.508011,20.888,20.876,86.90958694]
[1680440659158,17.508011,20.888,20.878,10.0]
[1680440661777,17.508011,20.888,20.877,10.0]
[1680440663473,17.508011,20.888,20.874,10.0]
[1680440663779,10.0,20.887,20.874,10.0]
[1680440663985,17.0,20.886,20.874,10.0]
[1680440664160,17.508011,20.888,20.874,10.0]
[1680440665061,0.508011,20.888,20.876,107.29514366]
[1680440665365,0.508011,20.888,20.877,10.0]
[1680440667981,33.51,20.889,20.877,10.0]
[1680440668680,142.1539,20.889,20.877,10.0]
[1680440669563,10.508011,20.888,20.877,10.0]
[1680440669970,0.508011,20.888,20.877,10.0]
[1680440671781,17.508011,20.888,20.877,10.0]
[1680440672367,0.508011,20.888,20.877,10.0]
[1680440672569,17.508011,20.888,20.877,10.0]
[1680440674080,0.508011,20.888,20.877,10.0]
[1680440674283,0.508011,20.888,20.878,17.0]
[1680440674491,0.508011,20.888,20.879,10.0]
[1680440677790,0.508011,20.888,20.88,17.0]
[1680440677993,0.508011,20.888,20.881,10.0]
[1680440678788,0.508011,20.888,20.882,17.0]
[1680440678981,0.508011,20.888,20.883,10.0]
[1680440691901,0.508011,20.888,20.881,10.0]
[1680440692095,0.508011,20.888,20.883,10.0]
[1680440700412,0.508011,20.888,20.883,17.17217194]
[1680440700810,0.508011,20.888,20.883,7.17217194]
[1680440702094,0.508011,20.888,20.877,10.0]
[1680440702413,0.508011,20.888,20.878,7.17217194]
[1680440702617,0.508011,20.888,20.869,10.0]
[1680440702618,17.0,20.888,20.869,10.0]
[1680440702820,10.0,20.887,20.87,7.17217194]
[1680440703598,10.5076842,20.887,20.874,7.17217194]
[1680440703993,10.5076842,20.887,20.872,112.04]
[1680440704196,17.0,20.886,20.872,112.04]
[1680440704416,10.0,20.885,20.872,112.04]
[1680440704614,17.0,20.884,20.872,112.04]
[1680440704794,10.0,20.883,20.872,112.04]
[1680440706507,0.50604972,20.882,20.873,10.0]
[1680440707610,10.0,20.887,20.873,10.0]
[1680440710615,10.0,20.888,20.873,10.0]
[1680440711509,0.45694846,20.887,20.873,10.0]
[1680440712802,17.45694846,20.887,20.873,10.0]
[1680440714118,0.45694846,20.887,20.875,10.0]
[1680440714827,0.45694846,20.887,20.874,17.0]
[1680440718516,0.45694846,20.887,20.875,10.0]
[1680440718725,0.45694846,20.887,20.877,10.0]
[1680440719109,0.45694846,20.887,20.879,10.0]
[1680440719309,0.45694846,20.887,20.88,17.0]
[1680440719928,35.09639157,20.898,20.88,17.0]
[1680440720325,115.20653958,20.9,20.88,17.0]
[1680440721028,0.45662163,20.886,20.88,17.0]
[1680440721621,0.45662163,20.886,20.881,10.0]
[1680440721827,0.45662163,20.886,20.883,10.0]
[1680440722130,33.51,20.889,20.885,10.0]
[1680440722339,16.75,20.896,20.886,17.0]
[1680440722527,16.75,20.896,20.887,10.0]
[1680440722830,16.75,20.896,20.889,10.0]
[1680440724327,16.75,20.896,20.89,17.0]
[1680440724534,16.75,20.896,20.891,10.0]
[1680440725343,16.75,20.896,20.893,10.0]
[1680440725641,16.75,20.896,20.895,10.0]
[1680440726831,17.20988855,20.896,20.895,10.0]
[1680440727128,17.20988855,20.896,20.893,10.0]
[1680440727332,14.70988855,20.896,20.895,10.0]
[1680440728534,14.70988855,20.896,20.894,17.0]
[1680440728535,14.70988855,20.896,20.893,10.0]
[1680440728733,14.70988855,20.896,20.891,10.0]
[1680440728930,14.70988855,20.896,20.892,17.0]
[1680440729234,14.70988855,20.896,20.893,10.0]
[1680440729841,14.70988855,20.896,20.891,10.0]
[1680440730532,14.70988855,20.896,20.886,107.29524645]
[1680440730927,14.25,20.896,20.886,107.29524645]
[1680440731936,14.25,20.896,20.891,10.0]
[1680440735137,14.25,20.896,20.89,17.0]
[1680440735725,14.25,20.896,20.863,19.160838]
[1680440735726,14.25,20.896,20.868,142.9]
[1680440736133,14.25,20.896,20.878,7.17217194]
[1680440736834,0.45956199,20.895,20.878,7.17217194]
[1680440737442,0.45956199,20.895,20.876,107.29514366]
[1680440738444,0.45956199,20.895,20.885,17.17217194]
[1680440739232,0.45956199,20.895,20.889,10.0]
[1680440741546,0.45956199,20.895,20.888,17.0]
[1680440741841,0.45956199,20.895,20.885,17.17217194]
[1680440743451,14.25,20.896,20.876,10.0]
[1680440743832,14.25,20.896,20.88,119.52407194]
[1680440745343,10.45956199,20.895,20.88,119.52407194]
[1680440746934,0.45956199,20.895,20.88,119.52407194]
[1680440747343,39.912654,20.885,20.88,119.52407194]
[1680440747646,39.912654,20.885,20.877,10.0]
[1680440747647,39.912654,20.885,20.882,17.0]
[1680440748249,0.45596787,20.884,20.882,17.0]
[1680440748448,0.45596787,20.884,20.882,24.17217194]
[1680440750453,0.45596787,20.884,20.883,10.0]
[1680440750647,0.45596787,20.884,20.883,27.0]
[1680440750946,0.45596787,20.884,20.883,34.17217194]
[1680440751330,14.25,20.896,20.884,10.0]
[1680440751529,14.25,20.896,20.886,10.0]
[1680440751953,14.25,20.896,20.888,10.0]
[1680440752356,0.41396521,20.895,20.89,10.0]
[1680440752535,0.41396521,20.895,20.892,10.0]
[1680440754758,19.152518,20.904,20.893,24.17217194]
[1680440754950,16.75,20.896,20.893,24.17217194]
[1680440755143,19.152518,20.904,20.894,17.17217194]
[1680440755350,0.37518022,20.903,20.895,27.0]
[1680440755541,0.37518022,20.903,20.896,10.0]
[1680440755741,0.37518022,20.903,20.898,10.0]
[1680440756249,0.37518022,20.903,20.9,10.0]
[1680440757443,19.152518,20.904,20.9,10.0]
[1680440757835,19.152518,20.904,20.898,10.0]
[1680440758042,19.152518,20.904,20.899,17.0]
[1680440758249,0.37518022,20.903,20.896,10.0]
[1680440758551,0.37518022,20.903,20.897,17.0]
[1680440759836,0.37518022,20.903,20.899,10.0]
[1680440760253,19.152518,20.904,20.899,10.0]
[1680440761352,0.37518022,20.903,20.899,10.0]
[1680440762340,19.152518,20.904,20.899,10.0]
[1680440763157,19.152518,20.904,20.897,17.0]
[1680440765154,19.152518,20.904,20.895,10.0]
[1680440765460,19.152518,20.904,20.891,116.81647194]
[1680440766353,19.152518,20.904,20.893,7.17217194]
[1680440766558,19.152518,20.904,20.895,10.0]
[1680440766858,19.152518,20.904,20.897,10.0]
[1680440767052,19.152518,20.904,20.898,17.0]
[1680440767256,19.152518,20.904,20.899,10.0]
[1680440768245,0.37518022,20.903,20.899,10.0]
[1680440769461,19.152518,20.904,20.9,17.0]
[1680440771651,576.71499802,20.911,20.899,10.0]
[1680440771849,576.71499802,20.911,20.9,17.0]
[1680440772252,115.9247,20.911,20.9,17.0]
[1680440774155,115.9247,20.911,20.901,10.0]
[1680440774355,115.9247,20.911,20.902,17.0]
[1680440774556,115.9247,20.911,20.903,10.0]
[1680440774760,115.9247,20.911,20.905,10.0]
[1680440774952,115.9247,20.911,20.906,17.0]
[1680440775154,468.93064071,20.913,20.906,17.0]
[1680440775753,468.93064071,20.913,20.907,10.0]
[1680440776069,468.93064071,20.913,20.909,10.0]
[1680440776960,468.93064071,20.913,20.907,10.0]
[1680440777181,468.93064071,20.913,20.909,10.0]
[1680440777859,468.93064071,20.913,20.91,17.0]
[1680440778259,0.34137679,20.912,20.91,17.0]
[1680440780875,0.00137679,20.912,20.91,17.0]
[1680440781461,455.86588269,20.921,20.91,17.0]
[1680440781975,10.0,20.931,20.91,17.0]
[1680440782481,0.68659423,20.913,20.91,17.0]
[1680440782772,0.68659423,20.913,20.911,10.0]
[1680440782976,0.68659423,20.913,20.912,17.0]
[1680440784372,0.45772948,20.913,20.912,17.0]
[1680440784676,0.45772948,20.913,20.911,10.0]
[1680440784878,0.45772948,20.913,20.912,17.0]
[1680440786181,0.45772948,20.913,20.911,10.0]
[1680440786481,0.45772948,20.913,20.912,17.0]
[1680440788465,0.45772948,20.913,20.911,10.0]
[1680440788961,0.45772948,20.913,20.909,10.0]
[1680440789162,0.45772948,20.913,20.907,10.0]
[1680440789758,0.45772948,20.913,20.905,10.0]
[1680440790370,0.68659423,20.913,20.905,10.0]
[1680440790887,0.68659423,20.913,20.907,10.0]
[1680440792288,0.45772948,20.913,20.907,10.0]
[1680440792685,0.45772948,20.913,20.906,17.0]
[1680440796089,0.45772948,20.913,20.907,10.0]
[1680440796278,0.68659423,20.913,20.909,10.0]
[1680440796591,0.68659423,20.913,20.91,17.0]
[1680440797392,0.45772948,20.913,20.91,17.0]
[1680440797577,0.45772948,20.913,20.909,10.0]
[1680440797777,0.45772948,20.913,20.91,17.0]
[1680440800491,0.45772948,20.913,20.907,10.0]
[1680440800492,0.45772948,20.913,20.908,17.0]
[1680440801296,0.45772948,20.913,20.907,10.0]
[1680440801497,0.45772948,20.913,20.905,10.0]
[1680440801996,10.0,20.912,20.895,10.0]
[1680440802371,10.0,20.91,20.895,10.0]
[1680440804491,0.68333356,20.909,20.895,10.0]
[1680440805178,0.68333356,20.909,20.898,10.0]
[1680440805392,0.68333356,20.909,20.899,17.0]
[1680440805598,0.68333356,20.909,20.895,10.0]
[1680440805901,0.68333356,20.909,20.889,10.0]
[1680440806084,10.0,20.908,20.889,10.0]
[1680440806797,17.0,20.907,20.889,10.0]
[1680440807094,10.0,20.906,20.889,10.0]
[1680440807397,10.0,20.906,20.891,10.0]
[1680440807580,10.0,20.904,20.889,10.0]
[1680440807775,37.0,20.903,20.889,10.0]
[1680440807984,10.0,20.902,20.887,10.0]
[1680440808188,10.0,20.902,20.886,20.11080095]
[1680440808189,10.0,20.9,20.886,20.11080095]
[1680440809184,20.67844021,20.903,20.888,10.0]
[1680440809381,20.67844021,20.903,20.889,17.0]
[1680440810294,10.0,20.902,20.889,17.0]
[1680440810492,10.0,20.9,20.886,20.11080095]
[1680440810676,10.0,20.9,20.886,10.11080095]
[1680440811288,123.6301,20.9,20.886,10.11080095]
[1680440812579,0.67517642,20.899,20.886,10.11080095]
[1680440812799,10.0,20.898,20.886,10.11080095]
[1680440814781,10.0,20.898,20.887,10.8416476]
[1680440815899,0.67517642,20.899,20.887,10.8416476]
[1680440816483,0.67354405,20.897,20.887,10.8416476]
[1680440816887,0.67354405,20.897,20.889,10.0]
[1680440817197,0.67354405,20.897,20.891,10.0]
[1680440817398,0.67354405,20.897,20.889,20.84060958]
[1680440817586,113.6301,20.9,20.891,10.0]
[1680440817982,113.6301,20.9,20.889,20.84060958]
[1680440818183,113.6301,20.9,20.891,10.0]
[1680440819395,113.6301,20.9,20.889,20.84060958]
[1680440819591,113.6301,20.9,20.891,10.0]
[1680440820099,113.6301,20.9,20.889,20.84060958]
[1680440820301,113.6301,20.9,20.891,10.0]
[1680440820690,0.67517642,20.899,20.891,10.0]
[1680440820988,0.67517642,20.899,20.89,17.0]
[1680440821892,0.67517642,20.899,20.896,19.133909]
[1680440822498,16.745,20.902,20.896,19.133909]
[1680440822686,10.0,20.901,20.896,19.133909]
[1680440824399,17.0,20.9,20.896,15.174509]
[1680440824597,10.0,20.899,20.889,10.84060958]
[1680440824904,10.0,20.897,20.889,10.84060958]
[1680440825201,10.0,20.895,20.889,10.84060958]
[1680440825387,10.0,20.893,20.889,10.84060958]
[1680440825796,10.0,20.891,20.889,10.84060958]
[1680440826190,10.0,20.893,20.889,10.84060958]
[1680440826391,10.0,20.893,20.878,110.3623]
[1680440826592,10.0,20.891,20.881,10.0]
[1680440826793,10.0,20.891,20.882,9.4006492]
[1680440827689,20.0,20.892,20.882,9.4006492]
[1680440828604,20.0,20.894,20.882,9.4006492]
[1680440829507,0.67027839,20.893,20.882,9.4006492]
[1680440829706,10.67027839,20.893,20.882,9.4006492]
[1680440830008,20.0,20.892,20.882,9.4006492]
[1680440831806,20.0,20.892,20.884,10.0]
[1680440832003,16.748,20.898,20.885,9.39929886]